bitfinex-derivatives/quotes_BTCF0:USTF0_20260131
["timestamp","ask_amount","ask_price","bid_price","bid_amount"]
[1769878523218,0.33896,80289.0,80263.0,0.09821654]
[1769878523413,0.22570146,80298.0,80266.0,0.012477]
[1769878523615,0.10108,80298.0,80273.0,0.09821654]
[1769878523909,0.12459273,80297.0,80275.0,0.11069254]
[1769878524116,0.012469,80320.0,80279.0,0.09821654]
[1769878524309,0.42972,80319.0,80282.0,0.09821654]
[1769878524512,0.12455471,80313.0,80282.0,0.09821654]
[1769878524712,0.01247,80311.0,80280.0,0.09821654]
[1769878524909,0.00992229,80309.0,80279.0,0.09821654]
[1769878525115,0.012471,80308.0,80277.0,0.09821654]
[1769878525315,0.012472,80303.0,80277.0,0.09821654]
[1769878525520,0.00992229,80289.0,80268.0,0.09821654]
[1769878525722,0.00992229,80289.0,80261.0,0.09821654]
[1769878525919,0.00992229,80289.0,80260.0,0.09821654]
[1769878526219,0.012474,80287.0,80260.0,0.09821654]
[1769878526522,0.012475,80282.0,80250.0,0.09821654]
[1769878526816,0.02182645,80271.0,80243.0,0.14780516]
[1769878527018,0.00934945,80253.0,80214.0,0.18475645]
[1769878527316,0.00934945,80310.0,80256.0,0.00521494]
[1769878527516,0.06235,80316.0,80233.0,0.18475645]
[1769878527517,0.012476,80272.0,80233.0,0.18475645]
[1769878527720,0.062364,80298.0,80216.0,0.10104]
[1769878527721,0.012478,80261.0,80216.0,0.18475645]
[1769878527913,0.00010581,80260.0,80223.0,0.012484]
[1769878528114,0.00010581,80260.0,80217.0,0.37206086]
[1769878528115,0.00934945,80230.0,80205.0,0.18475645]
[1769878528322,0.062401,80251.0,80188.0,0.00015026]
[1769878528323,0.012485,80220.0,80188.0,0.00015026]
[1769878528623,0.45336688,80219.0,80188.0,0.00015026]
[1769878528822,0.012485,80217.0,80188.0,0.00015026]
[1769878529022,0.02183445,80217.0,80188.0,0.00015026]
[1769878529321,0.012485,80215.0,80188.0,0.00015026]
[1769878529618,0.00934945,80214.0,80188.0,0.00015026]
[1769878530010,0.13403384,80214.0,80188.0,0.00015026]
[1769878530618,0.13403384,80214.0,80188.0,0.00115026]
[1769878530816,0.00010581,80219.0,80203.0,0.1303939]
[1769878531113,0.10108,80218.0,80196.0,0.1303939]
[1769878531513,0.10108,80218.0,80200.0,0.1303939]
[1769878531717,0.10108,80218.0,80188.0,0.00115026]
[1769878531910,0.14651184,80217.0,80188.0,0.00115026]
[1769878532115,0.02183545,80214.0,80188.0,0.00115026]
[1769878532323,0.00010581,80213.0,80188.0,0.00115026]
[1769878532820,0.12468672,80212.0,80188.0,0.00115026]
[1769878533020,0.3394,80226.0,80188.0,0.00115026]
[1769878533021,0.012476,80276.0,80222.0,0.00043028]
[1769878533210,0.33884,80283.0,80214.0,0.012485]
[1769878533211,0.012479,80257.0,80214.0,0.012485]
[1769878533410,0.12468672,80250.0,80219.0,0.012485]
[1769878533719,0.32872,80252.0,80232.0,0.1303939]
[1769878534022,0.32872,80251.0,80231.0,0.012483]
[1769878534210,0.10108,80251.0,80224.0,0.012484]
[1769878534410,0.10108,80251.0,80223.0,0.1303939]
[1769878534617,0.00985657,80242.0,80175.0,0.06950643]
[1769878534825,0.00999999,80229.0,80190.0,0.012489]
[1769878535017,0.4044,80241.0,80190.0,0.012489]
[1769878535018,0.01039543,80226.0,80190.0,0.012489]
[1769878535320,0.01039543,80226.0,80184.0,0.01249]
[1769878535516,0.11147543,80225.0,80184.0,0.01249]
[1769878535723,8.986e-05,80224.0,80184.0,0.01249]
[1769878535917,8.986e-05,80224.0,80189.0,0.012489]
[1769878536114,8.986e-05,80224.0,80194.0,0.012488]
[1769878536320,0.12467584,80223.0,80199.0,0.012488]
[1769878536518,7e-07,80225.0,80204.0,0.012487]
[1769878536713,0.012479,80254.0,80215.0,0.012485]
[1769878536926,0.02286373,80249.0,80209.0,0.012486]
[1769878537119,0.01038373,80239.0,80181.0,0.12467428]
[1769878537423,0.01038373,80236.0,80198.0,0.012488]
[1769878537923,6.04e-05,80235.0,80198.0,0.012488]
[1769878538126,0.12473313,80235.0,80204.0,0.012487]
[1769878538424,0.12473313,80235.0,80209.0,0.001]
[1769878538816,0.012482,80234.0,80209.0,0.001]
[1769878539216,0.02272518,80234.0,80209.0,0.001]
[1769878539519,0.012483,80228.0,80173.0,0.005]
[1769878539719,0.00990985,80216.0,80181.0,0.012491]
[1769878539920,0.00990985,80216.0,80186.0,0.01249]
[1769878539921,0.32876,80215.0,80186.0,0.01249]
[1769878540221,0.012486,80213.0,80179.0,0.012491]
[1769878540411,0.00957652,80210.0,80160.0,0.12465486]
[1769878540612,0.012486,80209.0,80178.0,0.012491]
[1769878540817,0.1371735,80209.0,80178.0,0.012491]
[1769878541021,0.1371735,80209.0,80181.0,0.001]
[1769878541527,0.10112,80245.0,80185.0,0.062451]
[1769878541819,0.10112,80245.0,80182.0,0.0203]
[1769878541820,0.12469605,80209.0,80182.0,0.0203]
[1769878542018,0.10112,80208.0,80197.0,0.005]
[1769878542212,0.3436,80207.0,80197.0,0.005]
[1769878542412,0.3436,80207.0,80178.0,0.001]
[1769878542413,0.10112,80208.0,80187.0,0.005]
[1769878542720,0.10112,80207.0,80180.0,0.003]
[1769878542919,1.41572,80244.0,80188.0,0.12468439]
[1769878543224,0.56948439,80243.0,80203.0,0.00224958]
[1769878543416,0.44484,80242.0,80203.0,0.00224958]
[1769878543725,0.44484,80242.0,80220.0,0.012485]
[1769878544018,0.34376,80251.0,80219.0,0.012485]
[1769878544221,0.10112,80241.0,80219.0,0.012485]
[1769878544416,0.10112,80241.0,80205.0,0.005]
[1769878544417,0.1246634,80256.0,80231.0,0.012483]
[1769878544612,0.44476,80255.0,80225.0,0.012484]
[1769878545017,0.34352,80254.0,80230.0,0.012483]
[1769878545213,0.00966942,80275.0,80244.0,0.012481]
[1769878545419,0.10112,80257.0,80244.0,0.012481]
[1769878545615,0.10112,80257.0,80226.0,0.12689197]
[1769878545616,2.7e-07,80257.0,80248.0,0.01248]
[1769878545821,0.10112,80257.0,80248.0,0.01248]
[1769878546021,0.10112,80260.0,80248.0,0.01248]
[1769878546830,0.012475,80284.0,80248.0,0.01248]
[1769878547124,0.005,80281.0,80248.0,0.01248]
[1769878547327,0.42984,80280.0,80248.0,0.01248]
[1769878547525,0.42984,80280.0,80248.0,0.01448]
[1769878547726,0.34288,80281.0,80254.0,0.012479]
[1769878547926,0.10608,80279.0,80254.0,0.012479]
[1769878548326,0.005,80278.0,80254.0,0.012479]
[1769878548727,0.10108,80279.0,80254.0,0.012479]
[1769878548928,0.005,80278.0,80254.0,0.012479]
[1769878549132,0.10108,80279.0,80254.0,0.012479]
[1769878549327,0.10108,80279.0,80248.0,0.001]
[1769878549328,0.012473,80293.0,80259.0,0.012478]
[1769878549531,0.10108,80292.0,80265.0,0.012477]
[1769878549725,0.32872,80291.0,80270.0,0.012477]
[1769878550029,0.44352,80290.0,80270.0,0.005677]
[1769878550235,0.44356,80289.0,80270.0,0.005677]
[1769878550430,0.34236,80296.0,80274.0,0.012476]
[1769878550629,0.44344,80295.0,80274.0,0.012176]
[1769878550924,0.00966942,80320.0,80254.0,0.001]
[1769878550925,0.12456402,80303.0,80272.0,0.012476]
[1769878551127,0.00966942,80306.0,80276.0,0.012476]
[1769878551128,0.10108,80302.0,80276.0,0.012476]
[1769878551525,0.005,80292.0,80271.0,0.012477]
[1769878551724,0.10108,80302.0,80271.0,0.012477]
[1769878551931,0.005,80296.0,80271.0,0.012477]
[1769878552129,0.005,80296.0,80265.0,0.012477]
[1769878552329,0.12455006,80295.0,80260.0,0.012478]
[1769878552530,0.12455006,80295.0,80265.0,0.012477]
[1769878552727,0.012472,80301.0,80265.0,0.012477]
[1769878552932,0.005,80298.0,80265.0,0.012477]
[1769878553125,0.005,80297.0,80272.0,0.001]
[1769878553323,0.012472,80301.0,80272.0,0.001]
[1769878553524,0.005,80290.0,80272.0,0.001]
[1769878553931,0.005,80280.0,80265.0,0.013477]
[1769878554124,0.32868,80279.0,80265.0,0.001]
[1769878554627,0.005,80277.0,80265.0,0.001]
[1769878554827,0.005,80278.0,80265.0,0.001]
[1769878555027,0.005,80277.0,80265.0,0.001]
[1769878555529,0.005,80276.0,80265.0,0.001]
[1769878555730,0.005,80277.0,80265.0,0.001]
[1769878555924,0.00966942,80265.0,80229.0,0.18516177]
[1769878556133,0.00966942,80250.0,80213.0,0.18530177]
[1769878556326,0.32864,80249.0,80213.0,0.00014]
[1769878556528,0.01466942,80248.0,80213.0,0.00014]
[1769878557028,0.005,80247.0,80213.0,0.00014]
[1769878557222,0.00966942,80248.0,80213.0,0.00114]
[1769878557429,0.01466942,80247.0,80213.0,0.00114]
[1769878557932,0.005,80246.0,80214.0,0.012485]
[1769878558431,0.005,80245.0,80214.0,0.012485]
[1769878558822,0.005,80244.0,80219.0,0.012485]
[1769878559023,0.10108,80264.0,80213.0,0.00114]
[1769878559024,0.00966942,80242.0,80224.0,0.012484]
[1769878559234,0.00486,80223.0,80187.0,0.01249]
[1769878559428,0.00966942,80231.0,80187.0,0.01249]
[1769878559628,0.00966942,80231.0,80191.0,0.012489]
[1769878560130,0.00486,80220.0,80191.0,0.012489]
[1769878560427,0.00014,80230.0,80173.0,0.005]
[1769878560428,0.12477699,80230.0,80203.0,0.012487]
[1769878560630,0.00014,80230.0,80203.0,0.012487]
[1769878561230,0.00014,80230.0,80205.0,0.012487]
[1769878561432,0.00966942,80295.0,80229.0,0.00327287]
[1769878561633,0.012476,80273.0,80230.0,0.012483]
[1769878561932,0.012476,80273.0,80219.0,0.00827287]
[1769878561933,0.12466107,80279.0,80241.0,0.012481]
[1769878562127,0.062374,80286.0,80225.0,0.012484]
[1769878562430,0.012477,80269.0,80225.0,0.012484]
[1769878562831,0.12460205,80268.0,80231.0,0.012483]
[1769878563035,0.062342,80327.0,80211.0,0.062431]
[1769878563036,0.062349,80318.0,80239.0,0.00792005]
[1769878563233,0.012472,80302.0,80252.0,0.012479]
[1769878563425,0.005,80323.0,80265.0,0.00792005]
[1769878563426,0.12460205,80298.0,80265.0,0.00792005]
[1769878563633,0.10108,80306.0,80265.0,0.00792005]
[1769878564144,0.10108,80306.0,80279.0,0.012475]
[1769878564738,0.00966942,80305.0,80272.0,0.012476]
[1769878565824,0.10108,80306.0,80272.0,0.012476]
[1769878566031,0.10108,80306.0,80283.0,0.012475]
[1769878566536,0.001,80318.0,80255.0,0.2104674]
[1769878566537,0.01066942,80318.0,80262.0,0.0083412]
[1769878566732,0.01066942,80318.0,80268.0,0.0083412]
[1769878567127,0.10108,80320.0,80268.0,0.0083412]
[1769878567533,0.10108,80320.0,80270.0,0.00834684]
[1769878567534,0.12454153,80319.0,80270.0,0.00834684]
[1769878567740,0.00996375,80318.0,80254.0,0.1480704]
[1769878567938,0.00996375,80297.0,80259.0,0.012478]
[1769878568133,0.00996375,80291.0,80253.0,0.012479]
[1769878568531,0.00996375,80289.0,80253.0,0.012479]
[1769878568931,0.22561644,80290.0,80265.0,0.012477]
[1769878569134,0.02243975,80278.0,80228.0,0.01492043]
[1769878569332,0.00996375,80278.0,80241.0,0.012481]
[1769878569543,0.00996375,80288.0,80235.0,0.00992043]
[1769878569735,0.00996375,80288.0,80252.0,0.01248]
[1769878569936,0.12460593,80287.0,80252.0,0.01248]
[1769878570539,0.00996375,80286.0,80252.0,0.01248]
[1769878571245,0.12458032,80285.0,80252.0,0.01248]
[1769878571931,0.12458032,80285.0,80257.0,0.012479]
[1769878572131,0.00996375,80314.0,80258.0,0.00992043]
[1769878572331,0.10104,80313.0,80264.0,0.00992043]
[1769878572541,0.12458187,80311.0,80264.0,0.00992043]
[1769878572835,0.00996375,80297.0,80265.0,0.12455471]
[1769878573139,0.00996375,80297.0,80252.0,0.012479]
[1769878573537,0.00996375,80295.0,80252.0,0.012479]
[1769878573937,0.012474,80289.0,80252.0,0.012479]
[1769878574239,0.10104,80288.0,80265.0,0.00992043]
[1769878574430,0.10104,80297.0,80272.0,0.012476]
[1769878574839,0.10104,80297.0,80247.0,0.00992043]
[1769878574840,0.00996375,80296.0,80247.0,0.00992043]
[1769878575338,0.10104,80297.0,80226.0,0.062419]
[1769878575339,0.00996375,80290.0,80249.0,0.13704945]
[1769878575533,0.00996375,80290.0,80249.0,0.01248]
[1769878575733,0.012475,80284.0,80249.0,0.01248]
[1769878575935,0.00996375,80279.0,80249.0,0.01248]
[1769878576238,0.012476,80278.0,80243.0,0.012481]
[1769878576535,0.012476,80275.0,80243.0,0.012481]
[1769878576740,0.10104,80277.0,80248.0,0.01248]
[1769878576942,0.10104,80277.0,80237.0,0.00992043]
[1769878577138,0.10104,80277.0,80241.0,0.00992043]
[1769878577339,0.10104,80277.0,80250.0,0.01248]
[1769878577636,0.09707435,80277.0,80240.0,0.00992043]
[1769878578037,0.09707435,80277.0,80258.0,0.012479]
[1769878579434,0.09707435,80277.0,80258.0,0.013479]
[1769878580246,0.09707435,80277.0,80258.0,0.001]
[1769878580637,0.012475,80283.0,80258.0,0.001]
[1769878580941,0.012475,80281.0,80258.0,0.001]
[1769878581550,0.12458342,80280.0,80258.0,0.001]
[1769878581843,0.12458342,80280.0,80253.0,0.012479]
[1769878582031,0.00996375,80295.0,80258.0,0.001]
[1769878582032,0.012474,80286.0,80258.0,0.001]
[1769878582238,0.012475,80282.0,80259.0,0.012478]
[1769878582434,0.00996375,80295.0,80259.0,0.012478]
[1769878582435,0.012474,80287.0,80259.0,0.012478]
[1769878582739,0.012475,80281.0,80255.0,0.012479]
[1769878583336,0.012474,80285.0,80259.0,0.012478]
[1769878583643,0.012474,80289.0,80263.0,0.012478]
[1769878583844,0.12458264,80292.0,80266.0,0.012477]
[1769878584144,0.10104,80297.0,80254.0,0.00992043]
[1769878584145,0.012473,80294.0,80265.0,0.012478]
[1769878584643,0.012474,80291.0,80265.0,0.012478]
[1769878585140,0.00996375,80296.0,80254.0,0.00992043]
[1769878585344,0.10104,80297.0,80231.0,0.005]
[1769878585345,0.012477,80270.0,80244.0,0.012481]
[1769878585643,0.012477,80270.0,80239.0,0.012481]
[1769878586136,0.012478,80264.0,80239.0,0.012481]
[1769878586548,0.012478,80264.0,80235.0,0.012482]
[1769878586936,0.012478,80261.0,80235.0,0.012482]
[1769878587241,0.012479,80257.0,80235.0,0.012482]
[1769878588442,0.012479,80257.0,80239.0,0.001]
[1769878589346,0.012479,80257.0,80235.0,0.00992043]
[1769878589942,0.012478,80261.0,80241.0,0.00992043]
[1769878590844,0.10104,80275.0,80241.0,0.00992043]
[1769878591043,0.09717705,80275.0,80254.0,0.108989]
[1769878591243,0.09717705,80275.0,80256.0,0.09906857]
[1769878591545,0.09717705,80275.0,80249.0,0.1480704]
[1769878591546,0.10104,80303.0,80259.0,0.00992043]
[1769878591745,0.012474,80291.0,80264.0,0.012478]
[1769878592048,0.12458652,80302.0,80265.0,0.00992043]
[1769878592246,0.012472,80303.0,80273.0,0.012476]
[1769878592453,0.012472,80300.0,80269.0,0.02239743]
[1769878592645,0.005,80323.0,80289.0,0.00992043]
[1769878592845,0.00996375,80326.0,80283.0,0.09906857]
[1769878593045,0.01247,80312.0,80283.0,0.012475]
[1769878593441,0.00996375,80306.0,80270.0,0.20010857]
[1769878593644,0.012472,80303.0,80271.0,0.012477]
[1769878593955,0.10104,80305.0,80271.0,0.012477]
[1769878593956,0.012472,80304.0,80275.0,0.012476]
[1769878594358,0.012472,80298.0,80271.0,0.09906857]
[1769878594650,0.10104,80305.0,80270.0,0.10104]
[1769878594651,0.012474,80290.0,80270.0,0.10104]
[1769878595540,0.00996375,80304.0,80270.0,0.10104]
[1769878595541,0.012473,80295.0,80270.0,0.10104]
[1769878595742,0.012475,80282.0,80257.0,0.09906857]
[1769878595947,0.012474,80288.0,80256.0,0.09906857]
[1769878596252,0.00996375,80281.0,80248.0,0.12456402]
[1769878596447,0.012479,80254.0,80242.0,0.09906857]
[1769878596656,0.012476,80278.0,80252.0,0.01248]
[1769878596952,0.012476,80274.0,80246.0,0.09906857]
[1769878597147,0.012476,80274.0,80246.0,0.11154857]
[1769878597347,0.012475,80279.0,80252.0,0.01248]
[1769878597551,0.012475,80284.0,80256.0,0.012479]
[1769878597751,0.001,80288.0,80260.0,0.012478]
[1769878598654,0.001,80288.0,80256.0,0.09906857]
[1769878598655,0.001,80288.0,80264.0,0.012478]
[1769878598854,0.012475,80285.0,80258.0,0.09906857]
[1769878599053,0.012475,80285.0,80257.0,0.09906857]
[1769878599449,0.012475,80285.0,80256.0,0.09906857]
[1769878599651,0.00967266,80281.0,80254.0,0.09906857]
[1769878599857,0.012477,80272.0,80248.0,0.005]
[1769878600059,0.012477,80272.0,80247.0,0.01248]
[1769878600753,0.10104,80280.0,80246.0,0.0096003]
[1769878601058,0.10104,80280.0,80259.0,0.012478]
[1769878601957,0.10104,80280.0,80263.0,0.012478]
[1769878602559,0.012473,80293.0,80263.0,0.012478]
[1769878602758,0.012472,80299.0,80256.0,0.10819811]
[1769878603056,0.012472,80299.0,80250.0,0.01248]
[1769878603057,0.012473,80295.0,80260.0,0.10819811]
[1769878603652,0.012473,80295.0,80261.0,0.12457721]
[1769878604056,0.012473,80295.0,80266.0,0.012477]
[1769878604449,0.10104,80300.0,80270.0,0.012477]
[1769878604654,0.113512,80300.0,80270.0,0.012477]
[1769878605056,0.10104,80300.0,80280.0,0.012475]
[1769878605252,0.01247,80316.0,80288.0,0.012474]
[1769878606460,0.10104,80319.0,80283.0,0.00912954]
[1769878606958,0.10104,80319.0,80296.0,0.012473]
[1769878607259,0.10104,80319.0,80283.0,0.00912954]
[1769878607260,0.10104,80319.0,80291.0,0.012473]
[1769878607654,0.10104,80319.0,80295.0,0.012473]
[1769878607861,0.10104,80319.0,80299.0,0.012472]
[1769878608760,0.113509,80319.0,80293.0,0.012473]
[1769878608960,0.00909878,80315.0,80278.0,0.09906857]
[1769878609155,0.00909878,80315.0,80274.0,0.10819811]
[1769878609352,0.00909878,80315.0,80281.0,0.12451904]
[1769878609555,0.00909878,80315.0,80274.0,0.00912954]
[1769878609862,0.01247,80314.0,80275.0,0.1245361]
[1769878610062,0.01247,80314.0,80289.0,0.012474]
[1769878610260,0.012468,80329.0,80281.0,0.00912954]
[1769878610466,1.5e-07,80363.0,80336.0,0.012466]
[1769878610661,0.005,80358.0,80327.0,0.00912954]
[1769878610861,0.012461,80372.0,80341.0,0.012466]
[1769878611064,0.00909878,80380.0,80354.0,0.012464]
[1769878611360,0.01246,80378.0,80349.0,0.012464]
[1769878611562,0.10104,80378.0,80353.0,0.012464]
[1769878611857,0.10104,80378.0,80325.0,0.2104134]
[1769878611858,0.012462,80365.0,80322.0,0.00912954]
[1769878612059,2.9e-07,80377.0,80339.0,0.00912954]
[1769878612265,0.00999999,80402.0,80342.0,0.062329]
[1769878612459,0.00999999,80402.0,80329.0,0.16130084]
[1769878612460,0.40412,80408.0,80331.0,0.003]
[1769878612658,0.40412,80408.0,80349.0,0.012464]
[1769878612858,0.01246,80381.0,80344.0,0.012465]
[1769878613062,0.01246,80381.0,80331.0,0.12742144]
[1769878613063,0.096,80380.0,80323.0,0.10104]
[1769878613263,0.096,80380.0,80319.0,0.00010749]
[1769878613264,0.012464,80352.0,80319.0,0.00010749]
[1769878613463,0.101,80351.0,80319.0,0.00010749]
[1769878613655,0.101,80362.0,80335.0,0.012467]
[1769878613860,0.01246,80376.0,80336.0,0.012466]
[1769878613861,0.012461,80371.0,80336.0,0.012466]
[1769878614065,0.101,80376.0,80340.0,0.012466]
[1769878614262,0.012461,80374.0,80321.0,0.00310766]
[1769878614463,0.00987246,80369.0,80322.0,0.12447797]
[1769878614664,0.00987246,80369.0,80322.0,0.00310766]
[1769878614864,0.101,80376.0,80327.0,0.012468]
[1769878614865,0.00987246,80363.0,80327.0,0.012468]
[1769878615065,0.00987246,80361.0,80319.0,0.00010749]
[1769878615467,0.00987246,80359.0,80331.0,0.012467]
[1769878615967,0.00987246,80359.0,80335.0,0.012467]
[1769878616260,0.00987246,80373.0,80323.0,0.00370654]
[1769878616466,0.00987246,80373.0,80343.0,0.012465]
[1769878616671,0.101,80376.0,80343.0,0.012465]
[1769878616672,0.00987246,80371.0,80343.0,0.012465]
[1769878617262,0.00987246,80366.0,80325.0,0.012468]
[1769878617570,0.00987246,80355.0,80322.0,0.012469]
[1769878617764,0.00987246,80353.0,80326.0,0.012468]
[1769878617966,0.00987246,80353.0,80324.0,0.012468]
[1769878618164,0.00987246,80353.0,80328.0,0.012468]
[1769878618561,0.00987246,80353.0,80323.0,0.012468]
[1769878618867,0.00987246,80353.0,80321.0,0.101]
[1769878618868,0.00987246,80314.0,80282.0,0.012475]
[1769878619065,0.01247,80315.0,80282.0,0.012475]
[1769878619066,0.00987246,80312.0,80282.0,0.012475]
[1769878619262,0.00987246,80312.0,80277.0,0.012476]
[1769878619468,0.00987246,80309.0,80277.0,0.012476]
[1769878619664,0.00010749,80308.0,80277.0,0.012476]
[1769878619865,0.00987246,80307.0,80277.0,0.012476]
[1769878620067,0.12464902,80308.0,80285.0,0.012474]
[1769878620268,0.00010749,80308.0,80285.0,0.012474]
[1769878621064,0.00010749,80308.0,80289.0,0.012474]
[1769878621567,0.00010749,80308.0,80294.0,0.012473]
[1769878622071,0.00010749,80308.0,80273.0,0.00425893]
[1769878622072,0.00010749,80308.0,80292.0,0.012473]
[1769878622269,0.00010749,80308.0,80287.0,0.012474]
[1769878622469,0.00010749,80308.0,80282.0,0.012475]
[1769878622673,0.00997995,80308.0,80282.0,0.012475]
[1769878622977,0.00997995,80308.0,80287.0,0.012474]
[1769878623767,0.00997995,80308.0,80259.0,0.14844103]
[1769878623768,0.00987246,80306.0,80258.0,0.09871319]
[1769878623971,0.12453687,80307.0,80249.0,0.009753]
[1769878623972,0.00987246,80291.0,80257.0,0.012479]
[1769878624277,0.00010749,80305.0,80244.0,0.01264163]
[1769878624278,0.00987246,80282.0,80244.0,0.01264163]
[1769878624576,0.00987246,80275.0,80244.0,0.00016063]
[1769878624878,0.00987246,80258.0,80220.0,0.20176692]
[1769878625077,0.00987246,80258.0,80220.0,0.21425092]
[1769878625376,0.00987246,80258.0,80222.0,0.1245904]
[1769878625576,0.00987246,80258.0,80228.0,0.012483]
[1769878625777,0.101,80265.0,80224.0,0.009753]
[1769878626076,0.00014466,80257.0,80240.0,0.20176692]
[1769878627077,0.00014466,80257.0,80223.0,0.012484]
[1769878627274,0.00962018,80257.0,80223.0,0.012484]
[1769878627582,0.00947552,80249.0,80217.0,0.012485]
[1769878627873,0.01248,80250.0,80222.0,0.012484]
[1769878628074,0.012481,80246.0,80217.0,0.012485]
[1769878628280,9.709e-05,80245.0,80217.0,0.012485]
[1769878628473,0.101,80252.0,80223.0,0.00902815]
[1769878628679,0.012477,80267.0,80235.0,0.012482]
[1769878629179,0.11051552,80271.0,80230.0,0.20176692]
[1769878629180,0.10104,80271.0,80243.0,0.012481]
[1769878629578,0.00010946,80270.0,80243.0,0.012481]
[1769878629776,0.00010946,80270.0,80241.0,0.00902815]
[1769878629974,0.00947552,80283.0,80241.0,0.00902815]
[1769878629975,0.012476,80277.0,80249.0,0.01248]
[1769878630170,0.012477,80269.0,80241.0,0.12459972]
[1769878630374,0.012477,80269.0,80240.0,0.20176692]
[1769878630375,0.02195252,80269.0,80240.0,0.20176692]
[1769878630579,0.10104,80272.0,80240.0,0.20176692]
[1769878630878,6.157e-05,80271.0,80255.0,0.012479]
[1769878631674,0.012475,80284.0,80255.0,0.012479]
[1769878631877,0.10104,80287.0,80259.0,0.012478]
[1769878632682,0.012474,80286.0,80259.0,0.012478]
[1769878633274,0.10104,80287.0,80263.0,0.012478]
[1769878633476,0.30287648,80363.0,80263.0,0.012478]
[1769878633477,0.012472,80301.0,80263.0,0.00902815]
[1769878633679,0.012471,80306.0,80275.0,0.012476]
[1769878633979,0.012471,80306.0,80279.0,0.012475]
[1769878634175,0.012471,80306.0,80282.0,0.012475]
[1769878634381,0.00947552,80310.0,80270.0,0.00902815]
[1769878634382,0.012471,80310.0,80286.0,0.012474]
[1769878634577,0.10104,80312.0,80269.0,0.10104]
[1769878634578,0.10104,80312.0,80281.0,0.00902815]
[1769878634771,0.10104,80312.0,80293.0,0.012473]
[1769878635084,0.09804,80342.0,80298.0,0.00902815]
[1769878635281,0.012466,80339.0,80303.0,0.00902815]
[1769878635481,0.012466,80339.0,80294.0,0.10104]
[1769878635482,0.02194152,80339.0,80295.0,0.00902815]
[1769878636084,0.02194152,80339.0,80297.0,0.00902815]
[1769878636481,0.012467,80336.0,80308.0,0.012471]
[1769878636782,0.012467,80336.0,80303.0,0.00902815]
[1769878636979,0.012466,80341.0,80315.0,0.01247]
[1769878637186,0.00947552,80351.0,80304.0,0.12450509]
[1769878637381,0.012466,80338.0,80309.0,0.012471]
[1769878637684,0.012466,80338.0,80303.0,0.00902815]
[1769878637880,0.012467,80334.0,80295.0,0.001]
[1769878638076,0.012467,80334.0,80296.0,0.12449656]
[1769878638281,0.012467,80334.0,80309.0,0.012471]
[1769878638576,0.012467,80334.0,80290.0,0.00902815]
[1769878638577,0.00947552,80307.0,80268.0,0.10104]
[1769878638777,0.012473,80293.0,80268.0,0.113517]
[1769878639179,0.012473,80293.0,80251.0,0.005]
[1769878639180,0.012476,80273.0,80251.0,0.005]
[1769878639478,0.012476,80273.0,80248.0,0.101]
[1769878639479,0.012475,80280.0,80255.0,0.012479]
[1769878639682,0.012475,80280.0,80250.0,0.01248]
[1769878640477,0.012475,80280.0,80248.0,0.101]
[1769878640478,0.012475,80285.0,80254.0,0.012479]
[1769878640983,0.012475,80285.0,80258.0,0.012478]
[1769878642177,0.012474,80287.0,80258.0,0.012478]
[1769878642375,0.00947552,80320.0,80276.0,0.012476]
[1769878642683,0.10104,80323.0,80255.0,0.012479]
[1769878642684,0.00947552,80312.0,80277.0,0.22561721]
[1769878642880,0.00947552,80312.0,80277.0,0.12457721]
[1769878643179,0.012471,80307.0,80274.0,0.012476]
[1769878643380,0.00947552,80306.0,80274.0,0.012476]
[1769878643586,0.02194752,80302.0,80272.0,0.10104]
[1769878643883,0.012473,80298.0,80272.0,0.10104]
[1769878644079,0.11051552,80302.0,80253.0,0.00014279]
[1769878644080,0.012474,80291.0,80259.0,0.012478]
[1769878644283,0.012474,80286.0,80259.0,0.012478]
[1769878645183,0.012474,80291.0,80259.0,0.012478]
[1769878645383,0.012474,80287.0,80259.0,0.012478]
[1769878645588,0.00947552,80293.0,80253.0,0.10118279]
[1769878645589,0.012475,80283.0,80254.0,0.012479]
[1769878646490,0.012475,80283.0,80258.0,0.012479]
[1769878646692,0.02194852,80293.0,80262.0,0.012478]
[1769878646891,0.00947552,80292.0,80253.0,0.10118279]
[1769878647189,0.13405428,80292.0,80253.0,0.10118279]
[1769878647391,0.00947552,80292.0,80253.0,0.10118279]
[1769878647991,0.00947552,80292.0,80261.0,0.012478]
[1769878649085,0.10104,80302.0,80253.0,0.10118279]
[1769878649086,0.00947552,80286.0,80256.0,0.012479]
[1769878649286,0.012475,80281.0,80256.0,0.012479]
[1769878649986,0.012474,80292.0,80263.0,0.012478]
[1769878650887,0.012474,80289.0,80263.0,0.012478]
[1769878651089,0.012475,80285.0,80258.0,0.012478]
[1769878651291,0.012475,80285.0,80257.0,0.012479]
[1769878651693,0.012475,80285.0,80260.0,0.012478]
[1769878652090,0.012475,80285.0,80260.0,0.02150615]
[1769878652693,0.012474,80286.0,80263.0,0.013478]
[1769878652889,0.012474,80286.0,80263.0,0.001]
[1769878652890,0.012475,80280.0,80263.0,0.001]
[1769878653489,0.012475,80280.0,80254.0,0.012479]
[1769878654491,0.012476,80276.0,80253.0,0.10118279]
[1769878654698,0.012476,80273.0,80253.0,0.10118279]
[1769878654891,0.012477,80270.0,80253.0,0.10118279]
[1769878655092,0.012476,80275.0,80253.0,0.10118279]
[1769878655989,0.10104,80283.0,80263.0,0.012478]
[1769878656195,0.00947552,80287.0,80254.0,0.12458885]
[1769878656395,0.00947552,80283.0,80253.0,0.10118279]
[1769878656896,0.10104,80293.0,80241.0,0.09871319]
[1769878656897,0.012478,80262.0,80241.0,0.09871319]
[1769878657098,0.012478,80262.0,80231.0,0.19016177]
[1769878657099,0.012479,80258.0,80231.0,0.005]
[1769878657298,0.012479,80253.0,80227.0,0.09871319]
[1769878657502,0.012479,80253.0,80226.0,0.012484]
[1769878657503,0.012479,80254.0,80228.0,0.012483]
[1769878657702,0.012479,80254.0,80226.0,0.09871319]